bitfinex-derivatives/quotes_BTCF0:USTF0_20241227
["timestamp","ask_amount","ask_price","bid_price","bid_amount"]
[1735320301547,0.64208079,93637.0,93619.0,1.5]
[1735320301755,0.28048078,93637.0,93635.0,0.414295]
[1735320302558,0.3608,93651.0,93636.0,0.053494]
[1735320302559,0.053489,93646.0,93636.0,0.053494]
[1735320302758,0.414295,93637.0,93628.0,1.50056]
[1735320303061,0.053508,93613.0,93607.0,0.0160813]
[1735320303258,0.053512,93606.0,93592.0,0.0701]
[1735320303464,0.3608,93593.0,93591.0,0.05352]
[1735320303662,0.3608,93593.0,93585.0,0.533484]
[1735320303858,0.3608,93593.0,93585.0,0.4794]
[1735320304159,0.3608,93593.0,93586.0,0.053523]
[1735320304857,0.05352,93592.0,93591.0,0.0034]
[1735320305052,0.05353,93575.0,93562.0,0.053537]
[1735320305360,0.05352,93592.0,93560.0,1.5]
[1735320305361,0.3608,93563.0,93560.0,1.57000996]
[1735320305760,0.3608,93563.0,93562.0,0.053537]
[1735320307153,0.3608,93581.0,93580.0,0.053527]
[1735320307750,0.3608,93587.0,93586.0,0.053523]
[1735320307960,0.3608,93600.0,93580.0,0.353527]
[1735320307961,0.3608,93600.0,93599.0,0.053516]
[1735320308260,0.3608,93600.0,93599.0,1.553516]
[1735320308661,0.3608,93616.0,93599.0,1.5]
[1735320308963,0.3608,93616.0,93614.0,0.053507]
[1735320309258,0.3608,93625.0,93610.0,0.3608]
[1735320309463,0.3608,93638.0,93630.0,0.053498]
[1735320309659,0.3608,93638.0,93622.0,0.3608]
[1735320309861,0.053497,93632.0,93622.0,0.3608]
[1735320310161,0.3608,93638.0,93622.0,0.6608]
[1735320310362,0.3608,93646.0,93645.0,0.05349]
[1735320311363,0.00160231,93651.0,93646.0,0.053489]
[1735320311564,0.00160231,93651.0,93637.0,0.01668177]
[1735320311865,0.007,93646.0,93645.0,0.001]
[1735320312056,0.3678,93646.0,93595.0,0.3608]
[1735320312258,0.3608,93612.0,93595.0,0.3608]
[1735320312457,0.3608,93612.0,93581.0,0.0357]
[1735320312658,0.3608,93585.0,93580.0,0.00160285]
[1735320312861,0.053524,93584.0,93580.0,0.00160285]
[1735320313062,0.053521,93590.0,93582.0,0.053524]
[1735320313360,0.0349,93611.0,93599.0,0.053515]
[1735320313565,0.3608,93600.0,93591.0,0.05352]
[1735320313862,0.3608,93600.0,93583.0,8.278e-05]
[1735320313863,0.053516,93598.0,93583.0,8.278e-05]
[1735320314061,0.3608,93609.0,93583.0,0.30608278]
[1735320314257,0.3608,93609.0,93602.0,0.053513]
[1735320314457,0.3608,93609.0,93584.0,1.5]
[1735320314658,0.3608,93609.0,93603.0,0.053513]
[1735320314855,0.3608,93609.0,93607.0,0.053511]
[1735320315060,0.3608,93620.0,93607.0,0.053511]
[1735320315260,0.3608,93629.0,93618.0,0.3608]
[1735320315469,0.3608,93629.0,93627.0,0.053499]
[1735320315666,0.3608,93629.0,93627.0,1.553499]
[1735320315860,0.3608,93629.0,93627.0,0.053499]
[1735320316164,0.053483,93657.0,93640.0,0.01]
[1735320316365,0.053483,93657.0,93656.0,0.3608]
[1735320316567,0.3608,93678.0,93648.0,0.053487]
[1735320316568,0.3608,93670.0,93648.0,0.053487]
[1735320316872,0.3608,93670.0,93651.0,0.053485]
[1735320317170,0.3608,93670.0,93658.0,0.3608]
[1735320317467,0.009,93657.0,93656.0,0.001]
[1735320317867,0.009,93657.0,93618.0,0.053504]
[1735320317868,0.6698,93657.0,93618.0,0.053504]
[1735320318055,0.3608,93635.0,93622.0,0.01]
[1735320318364,0.3608,93650.0,93642.0,0.053491]
[1735320318567,0.3608,93663.0,93632.0,0.01]
[1735320318568,0.3608,93655.0,93632.0,0.01]
[1735320318770,0.3608,93664.0,93622.0,0.0363]
[1735320318963,0.3608,93648.0,93621.0,0.36240214]
[1735320319161,0.3608,93640.0,93621.0,0.36240214]
[1735320319665,0.053498,93629.0,93621.0,0.36240214]
[1735320319871,0.0535,93626.0,93621.0,0.00160214]
[1735320320167,0.053502,93622.0,93621.0,0.00160214]
[1735320320877,0.053502,93622.0,93621.0,0.00260214]
[1735320321064,0.053502,93622.0,93621.0,0.00360214]
[1735320321466,0.057502,93622.0,93621.0,0.00260214]
[1735320321661,0.057502,93622.0,93621.0,0.36340214]
[1735320321861,0.058502,93622.0,93621.0,0.36240214]
[1735320322270,0.005,93622.0,93621.0,0.36240214]
[1735320322466,0.005,93622.0,93621.0,0.37240214]
[1735320322657,0.05509171,93646.0,93639.0,0.053492]
[1735320322857,0.00160271,93646.0,93645.0,0.01]
[1735320323269,0.00160271,93646.0,93634.0,0.01]
[1735320323466,0.00160271,93646.0,93639.0,0.3608]
[1735320323770,0.053492,93640.0,93625.0,0.3608]
[1735320323971,0.053492,93640.0,93639.0,0.3608]
[1735320324459,0.3608,93643.0,93623.0,1.50064]
[1735320324666,0.3608,93643.0,93621.0,0.00160214]
[1735320324861,0.053489,93645.0,93627.0,0.3608]
[1735320325071,0.01360271,93646.0,93626.0,0.3608]
[1735320325072,0.053498,93630.0,93626.0,0.3608]
[1735320325264,0.001,93640.0,93626.0,0.3608]
[1735320325265,0.053499,93628.0,93626.0,0.3608]
[1735320326064,0.001,93640.0,93626.0,0.3608]
[1735320326273,0.001,93640.0,93639.0,0.3608]
[1735320326471,0.05349,93644.0,93639.0,0.3608]
[1735320326661,0.05349,93644.0,93640.0,0.3608]
[1735320327064,0.00160271,93646.0,93645.0,0.063489]
[1735320327464,0.053481,93660.0,93652.0,0.053484]
[1735320327664,0.053481,93660.0,93659.0,0.3608]
[1735320328066,0.038,93676.0,93653.0,1.5]
[1735320328370,0.038,93676.0,93639.0,0.001]
[1735320328371,0.053492,93640.0,93639.0,0.001]
[1735320328670,0.053473,93673.0,93620.0,0.3608]
[1735320328671,0.3608,93641.0,93620.0,0.3608]
[1735320328878,0.053502,93622.0,93616.0,0.3608]
[1735320329277,0.053502,93622.0,93613.0,0.3608]
[1735320329875,0.053502,93622.0,93601.0,0.0387]
[1735320330073,0.054502,93622.0,93603.0,0.053513]
[1735320330278,0.054502,93622.0,93613.0,0.053507]
[1735320330475,0.054502,93622.0,93618.0,0.3608]
[1735320331071,0.053502,93622.0,93620.0,0.3608]
[1735320331276,0.054502,93622.0,93620.0,0.3608]
[1735320332376,0.054502,93622.0,93621.0,0.36240214]
[1735320332589,0.038,93639.0,93621.0,0.36240214]
[1735320332787,0.053496,93633.0,93624.0,0.053501]
[1735320332981,0.053496,93633.0,93632.0,0.3608]
[1735320333183,0.00160263,93641.0,93632.0,0.3608]
[1735320333184,0.05509463,93641.0,93632.0,0.3608]
[1735320333384,0.05509463,93641.0,93640.0,0.3608]
[1735320333678,0.00160263,93641.0,93640.0,0.3608]
[1735320333889,0.0377,93675.0,93640.0,0.3608]
[1735320334085,0.0377,93675.0,93665.0,0.3608]
[1735320334396,0.053477,93667.0,93665.0,0.3608]
[1735320334891,0.053477,93667.0,93666.0,0.3608]
[1735320335084,0.0384,93676.0,93666.0,0.3608]
[1735320335281,0.053475,93669.0,93666.0,0.3608]
[1735320336194,0.009,93667.0,93666.0,0.3618]
[1735320336589,0.008,93667.0,93666.0,0.3608]
[1735320336793,0.061476,93667.0,93666.0,0.3618]
[1735320337091,0.008,93667.0,93666.0,0.3618]
[1735320337298,0.009,93667.0,93666.0,0.3618]
[1735320337491,0.009,93667.0,93666.0,0.001]
[1735320337691,0.009,93667.0,93666.0,0.3618]
[1735320337996,0.0025498,93667.0,93666.0,0.3618]
[1735320338788,0.0105498,93667.0,93666.0,0.3618]
[1735320339386,0.054476,93667.0,93666.0,0.3608]
[1735320339601,0.053481,93659.0,93658.0,0.3608]
[1735320340096,0.053481,93659.0,93643.0,0.0006]
[1735320340298,0.3608,93644.0,93627.0,0.3608]
[1735320340489,0.053502,93622.0,93607.0,0.87752]
[1735320340688,0.053502,93622.0,93607.0,0.51612]
[1735320340889,0.3608,93643.0,93621.0,0.36240214]
[1735320341088,0.3608,93643.0,93616.0,0.3608]
[1735320341089,0.3608,93632.0,93608.0,0.00056]
[1735320341298,0.053502,93622.0,93616.0,0.3608]
[1735320341498,0.3608,93639.0,93612.0,0.053507]
[1735320341692,0.053496,93634.0,93625.0,0.3608]
[1735320342001,0.00160223,93647.0,93633.0,0.3608]
[1735320342196,0.053491,93642.0,93633.0,0.3608]
[1735320342389,0.00160223,93647.0,93641.0,0.3608]
[1735320342586,0.00160223,93647.0,93642.0,0.05349]
[1735320342796,0.053483,93656.0,93646.0,0.3608]
[1735320342994,0.0356,93672.0,93646.0,0.3608]
[1735320343195,0.0393,93681.0,93662.0,0.3608]
[1735320343387,0.053477,93667.0,93662.0,0.3608]
[1735320343589,0.053472,93675.0,93662.0,0.3608]
[1735320343795,0.053474,93672.0,93662.0,0.3608]
[1735320343995,0.053474,93672.0,93671.0,0.3608]
[1735320345787,0.053474,93672.0,93671.0,0.3618]
[1735320345788,0.005,93672.0,93671.0,0.3618]
[1735320346197,0.00160213,93682.0,93675.0,0.053472]
[1735320346394,0.00160213,93682.0,93681.0,0.3608]
[1735320346591,0.053458,93699.0,93681.0,0.3608]
[1735320346786,0.053458,93699.0,93698.0,0.3608]
[1735320346992,0.053454,93706.0,93682.0,0.0367]
[1735320347192,0.6608,93708.0,93696.0,0.3608]
[1735320347399,0.053459,93697.0,93696.0,0.3608]
[1735320347695,0.3608,93708.0,93681.0,0.3608]
[1735320348093,0.053467,93683.0,93679.0,0.00160143]
[1735320348300,0.3608,93697.0,93679.0,0.00160143]
[1735320348487,0.053464,93689.0,93679.0,0.00160143]
[1735320348687,0.053464,93689.0,93682.0,0.3608]
[1735320348896,0.3608,93708.0,93682.0,0.7216]
[1735320349086,0.3608,93708.0,93679.0,0.00160143]
[1735320349294,0.3608,93700.0,93680.0,0.053469]
[1735320349499,0.053462,93693.0,93679.0,0.00160143]
[1735320349802,0.3648,93708.0,93683.0,0.053467]
[1735320350099,0.3648,93708.0,93679.0,0.00160143]
[1735320350402,0.053464,93690.0,93679.0,0.00160143]
[1735320350591,0.053459,93699.0,93682.0,0.053467]
[1735320350792,0.053459,93699.0,93691.0,0.3608]
[1735320351392,0.001,93700.0,93691.0,0.3608]
[1735320351694,0.001,93700.0,93699.0,0.3608]
[1735320352998,0.001,93708.0,93699.0,0.3608]
[1735320353200,0.001,93708.0,93699.0,0.414257]
[1735320353397,0.001,93708.0,93707.0,0.3608]
[1735320353701,0.053454,93707.0,93691.0,0.3608]
[1735320353900,0.005,93700.0,93699.0,0.3618]
[1735320355103,0.053437,93737.0,93721.0,0.053445]
[1735320355310,0.3608,93742.0,93721.0,0.053445]
[1735320355311,0.3608,93742.0,93726.0,0.3608]
[1735320355496,0.053442,93728.0,93726.0,0.3608]
[1735320356405,0.01060143,93727.0,93726.0,0.3608]
[1735320356700,0.01060143,93727.0,93726.0,0.3618]
[1735320357105,0.00860143,93727.0,93726.0,0.3628]
[1735320359799,0.00860143,93727.0,93726.0,0.416243]
[1735320361103,0.00860143,93727.0,93726.0,0.055443]
[1735320361293,0.00860143,93727.0,93726.0,0.002]
[1735320361294,0.42284343,93727.0,93726.0,0.002]
[1735320361495,0.053456,93702.0,93701.0,0.3608]
[1735320361805,0.1132,93726.0,93701.0,0.3608]
[1735320362000,0.053449,93716.0,93701.0,0.3608]
[1735320362202,0.1132,93726.0,93701.0,0.3608]
[1735320362507,0.053451,93712.0,93700.0,0.3608]
[1735320362695,0.3608,93714.0,93700.0,0.3608]
[1735320363401,0.053457,93702.0,93700.0,0.3608]
[1735320363606,0.0362,93701.0,93700.0,0.3608]
[1735320364005,0.053452,93710.0,93702.0,0.053456]
[1735320364308,0.053452,93710.0,93708.0,0.3608]
[1735320364807,0.001,93712.0,93708.0,0.3608]
[1735320365308,0.002,93710.0,93708.0,0.3608]
[1735320365517,0.053439,93738.0,93709.0,1.5]
[1735320365810,0.053439,93738.0,93700.0,0.3618]
[1735320365811,0.3608,93714.0,93700.0,0.3618]
[1735320366006,0.003,93712.0,93700.0,0.3608]
[1735320366314,0.003,93712.0,93698.0,1.5]
[1735320366498,0.053466,93690.0,93689.0,0.3624008]
[1735320368006,0.414266,93690.0,93689.0,0.0016008]
[1735320368408,0.416266,93690.0,93689.0,0.0016008]
[1735320368608,0.416266,93690.0,93689.0,0.0026008]
[1735320368804,0.414266,93690.0,93689.0,0.0026008]
[1735320369009,0.3638,93690.0,93661.0,0.01413701]
[1735320369207,0.3638,93690.0,93656.0,0.33493258]
[1735320369208,0.3608,93669.0,93662.0,0.053482]
[1735320369605,0.05348,93666.0,93656.0,0.34910548]
[1735320369808,0.3608,93658.0,93656.0,0.33493258]
[1735320370011,8.069e-05,93657.0,93656.0,0.33493258]
[1735320371310,8.069e-05,93657.0,93656.0,0.74921758]
[1735320371702,8.069e-05,93657.0,93656.0,1.04921758]
[1735320372413,8.069e-05,93657.0,93656.0,1.05621758]
[1735320372807,6.9e-07,93657.0,93656.0,1.05621758]
[1735320373008,0.3608,93687.0,93682.0,0.05347]
[1735320373318,0.3608,93687.0,93669.0,0.3608]
[1735320373531,0.3608,93687.0,93686.0,1.5]
[1735320373717,0.3608,93694.0,93687.0,0.053467]
[1735320373908,0.3608,93703.0,93690.0,0.053465]
[1735320374109,0.3608,93703.0,93697.0,0.053461]
[1735320374314,0.3608,93703.0,93689.0,0.3608]
[1735320374509,0.3608,93703.0,93689.0,0.6608]
[1735320374832,0.3608,93703.0,93702.0,0.053459]
[1735320375118,0.3698,93703.0,93702.0,0.053459]
[1735320375511,0.3698,93703.0,93702.0,1.553459]
[1735320375706,0.3608,93703.0,93702.0,1.553459]
[1735320376014,0.3648,93703.0,93702.0,1.553459]
[1735320376411,0.3648,93703.0,93677.0,0.3608]
[1735320376617,0.053461,93699.0,93677.0,0.3608]
[1735320376816,0.3648,93703.0,93695.0,0.053463]
[1735320376817,0.36616,93703.0,93695.0,0.053463]
[1735320377117,0.3648,93703.0,93701.0,0.053459]
[1735320377312,0.3698,93703.0,93702.0,0.001]
[1735320377911,0.3678,93703.0,93702.0,1.5]
[1735320378313,0.3658,93703.0,93702.0,1.5]
[1735320378511,0.3678,93703.0,93702.0,1.501]
[1735320379619,0.002,93703.0,93702.0,1.801]
[1735320379815,0.002,93703.0,93702.0,1.51504513]
[1735320380122,0.3628,93703.0,93702.0,1.51504513]
[1735320380318,0.3628,93703.0,93702.0,0.01504513]
[1735320383024,0.285,93703.0,93702.0,0.31504513]
[1735320383622,0.285,93703.0,93702.0,1.81504513]
[1735320384411,0.36240081,93724.0,93723.0,0.053447]
[1735320384614,0.053441,93733.0,93724.0,0.053446]
[1735320384916,0.39892,93738.0,93724.0,0.053446]
[1735320384917,0.00132,93738.0,93737.0,0.053439]
[1735320385112,0.7216,93738.0,93737.0,0.053439]
[1735320385421,0.7216,93738.0,93737.0,1.5]
[1735320385821,0.3608,93753.0,93744.0,0.053434]
[1735320386025,0.3608,93753.0,93751.0,0.053431]
[1735320387527,0.3608,93753.0,93751.0,0.054431]
[1735320387825,0.3608,93764.0,93763.0,0.053424]
[1735320388429,0.3608,93764.0,93763.0,1.553424]
[1735320389022,0.3608,93764.0,93763.0,1.56780796]
[1735320389229,0.3608,93779.0,93772.0,0.053419]
[1735320389528,0.007,93764.0,93763.0,0.001]
[1735320389727,0.007,93764.0,93723.0,0.18960525]
[1735320389919,0.3608,93724.0,93723.0,0.18960525]
[1735320390628,0.414251,93724.0,93723.0,0.11180525]
[1735320390836,0.05346,93709.0,93708.0,0.47872]
[1735320391125,0.77506,93709.0,93708.0,0.47872]
[1735320391719,0.77506,93709.0,93708.0,0.49287145]
[1735320392119,0.77706,93709.0,93708.0,0.49287145]
[1735320392524,0.77706,93709.0,93708.0,0.47972]
[1735320393924,0.7236,93709.0,93708.0,0.47972]
[1735320394133,0.7246,93709.0,93708.0,0.47972]
[1735320394333,0.7246,93709.0,93696.0,0.00056]
[1735320394334,1.0246,93709.0,93696.0,0.00056]
[1735320394632,1.0246,93709.0,93671.0,0.3608]
[1735320394633,0.053473,93687.0,93673.0,0.05348]
[1735320394828,0.3608,93678.0,93674.0,1.5]
[1735320395532,0.3608,93678.0,93677.0,0.053478]
[1735320396045,0.3608,93678.0,93674.0,1.5]
[1735320396224,0.053479,93677.0,93674.0,1.503]
[1735320396933,0.3608,93678.0,93674.0,1.503]
[1735320397233,0.053479,93676.0,93674.0,1.503]
[1735320397427,0.053479,93676.0,93674.0,0.003]
[1735320397629,0.001,93677.0,93668.0,0.01387417]
[1735320397822,0.001,93677.0,93669.0,1.5]
[1735320398225,0.3618,93678.0,93669.0,1.5]
[1735320398428,0.3618,93678.0,93669.0,1.553482]
[1735320398628,0.3608,93678.0,93674.0,0.001]
[1735320398829,0.3608,93675.0,93674.0,0.001]
[1735320399531,0.3608,93675.0,93669.0,1.502]
[1735320399729,0.3608,93675.0,93669.0,1.555483]
[1735320400131,0.3608,93685.0,93669.0,1.502]
[1735320400328,0.3608,93685.0,93684.0,0.053474]
[1735320401034,0.3608,93685.0,93684.0,1.553474]
[1735320401737,0.0494,93696.0,93687.0,0.053473]
[1735320401938,0.00146603,93692.0,93687.0,0.053473]
[1735320402137,0.00146603,93692.0,93688.0,0.053472]
[1735320402730,0.00146603,93692.0,93689.0,0.053471]
[1735320403036,0.00146603,93691.0,93689.0,0.053471]
[1735320404039,0.3608,93702.0,93694.0,0.05200297]
[1735320404236,0.3608,93702.0,93687.0,0.01330174]
[1735320404237,0.3608,93697.0,93684.0,1.5]
[1735320404428,0.3608,93685.0,93676.0,0.053479]
[1735320404745,0.3608,93685.0,93670.0,0.00160155]
[1735320404746,0.3608,93685.0,93675.0,0.053479]
[1735320404944,0.008,93691.0,93684.0,0.053474]
[1735320404945,0.3608,93688.0,93684.0,0.053474]
[1735320405128,0.3608,93688.0,93676.0,0.053479]
[1735320405332,0.3608,93677.0,93670.0,0.00160155]
[1735320405547,0.3608,93711.0,93707.0,0.053461]
[1735320405739,0.00160155,93721.0,93720.0,0.053454]
[1735320405936,0.00160155,93721.0,93720.0,0.414254]
[1735320406240,0.3608,93730.0,93729.0,0.053449]
[1735320406436,0.053444,93739.0,93723.0,0.053452]
[1735320406632,0.053444,93739.0,93720.0,1.8608]
[1735320406841,0.00160071,93749.0,93730.0,0.3608]
[1735320407142,0.05345,93727.0,93720.0,0.001]
[1735320407539,0.3608,93731.0,93720.0,0.001]
[1735320407944,0.3608,93721.0,93720.0,0.001]
[1735320408244,0.3608,93721.0,93701.0,0.00160094]
[1735320408544,0.05346,93709.0,93701.0,0.00160094]
[1735320408742,0.3608,93713.0,93701.0,0.00160094]
[1735320409234,0.3608,93713.0,93712.0,0.053458]
[1735320409435,0.002,93731.0,93708.0,0.3608]
[1735320409739,0.002,93731.0,93724.0,0.053451]
[1735320410044,0.3608,93726.0,93708.0,0.3608]
[1735320410231,0.009,93721.0,93720.0,0.054453]
[1735320411536,0.3608,93726.0,93716.0,0.3608]
[1735320411845,0.3608,93726.0,93724.0,0.001]
[1735320412140,0.3608,93726.0,93723.0,0.053452]
[1735320412442,0.053462,93707.0,93701.0,0.00160094]
[1735320412647,0.3608,93708.0,93701.0,0.00160094]
[1735320412848,0.05347,93692.0,93687.0,0.3608]
[1735320413139,0.0557,93707.0,93687.0,0.3608]
[1735320413541,0.053468,93695.0,93687.0,0.414272]
[1735320414646,0.053468,93695.0,93689.0,0.053471]
[1735320414945,0.004,93695.0,93691.0,0.05347]
[1735320415452,0.00160172,93714.0,93713.0,0.053458]
[1735320415746,0.3608,93724.0,93720.0,0.053454]
[1735320415947,0.3608,93724.0,93721.0,0.053453]
[1735320416147,0.3608,93724.0,93722.0,1.5]
[1735320416341,0.3608,93724.0,93722.0,1.553452]
[1735320416643,0.3608,93724.0,93722.0,0.053452]
[1735320416847,0.3608,93724.0,93714.0,0.053457]
[1735320417042,0.053461,93708.0,93700.0,0.053465]
[1735320417245,0.3608,93707.0,93701.0,0.053464]
[1735320417837,0.3608,93707.0,93692.0,0.3608]
[1735320418245,0.3608,93707.0,93702.0,0.053464]
[1735320418446,0.3608,93707.0,93692.0,0.3608]
[1735320418751,0.3608,93707.0,93706.0,0.053462]
[1735320418946,0.414261,93707.0,93698.0,0.053466]
[1735320419148,0.05347,93693.0,93682.0,0.00160146]
[1735320419348,0.3608,93683.0,93678.0,0.053477]
[1735320419546,0.3608,93683.0,93679.0,0.053477]
[1735320419847,0.3608,93683.0,93669.0,1.5]
[1735320420040,0.3608,93683.0,93679.0,0.053477]
[1735320420242,0.3608,93682.0,93680.0,0.053476]
[1735320420649,0.3608,93681.0,93680.0,0.053476]
[1735320421152,0.3608,93696.0,93695.0,0.053468]
[1735320422342,0.00148,93707.0,93701.0,0.053465]
[1735320422547,0.3608,93724.0,93701.0,0.053465]
[1735320422753,9.3e-07,93702.0,93701.0,0.053465]
[1735320422945,0.3608,93724.0,93723.0,0.053452]
[1735320424154,0.36228,93740.0,93739.0,0.053443]
[1735320424348,0.3608,93740.0,93739.0,0.053443]
[1735320424550,0.3608,93785.0,93761.0,0.05343]
[1735320424741,0.3608,93772.0,93753.0,0.3608]
[1735320425047,0.3608,93772.0,93771.0,0.053424]
[1735320425248,0.3608,93782.0,93781.0,0.053419]
[1735320425452,0.00160037,93791.0,93790.0,0.053413]
[1735320425952,3.7e-07,93791.0,93790.0,0.053413]
[1735320426148,3.7e-07,93791.0,93790.0,0.414213]
[1735320426544,3.7e-07,93791.0,93790.0,1.914213]
[1735320427251,0.3608,93832.0,93790.0,2.1608]
[1735320427447,0.3608,93832.0,93830.0,0.05339]
[1735320427850,0.6608,93832.0,93820.0,0.414196]
[1735320428060,0.3608,93832.0,93820.0,0.053396]
[1735320428653,0.3608,93832.0,93830.0,0.001]
[1735320428654,0.008,93832.0,93830.0,0.001]
[1735320429352,0.3608,93831.0,93801.0,0.053407]
[1735320429559,0.3608,93814.0,93792.0,0.00159931]
[1735320429750,0.3608,93806.0,93801.0,0.053407]
[1735320429946,0.3608,93806.0,93785.0,0.3608]
[1735320430143,0.3608,93824.0,93820.0,0.001]
[1735320430758,0.3608,93824.0,93813.0,0.0534]
[1735320430759,0.005,93814.0,93813.0,0.0534]
[1735320431451,0.007,93824.0,93820.0,0.001]
[1735320433453,0.007,93824.0,93821.0,0.3608]
[1735320433657,0.014,93824.0,93820.0,0.002]
[1735320433850,0.3608,93821.0,93774.0,0.3608]
[1735320434056,0.3608,93788.0,93784.0,0.053417]
[1735320434253,0.3608,93792.0,93784.0,0.053417]
[1735320434751,0.6608,93792.0,93773.0,0.053423]
[1735320434950,0.3608,93776.0,93773.0,0.053423]
[1735320435256,0.3608,93776.0,93764.0,0.47852]
[1735320435457,0.3608,93776.0,93775.0,0.053422]
[1735320436253,0.3608,93787.0,93773.0,0.001]
[1735320436456,0.3608,93787.0,93776.0,0.053421]
[1735320436656,0.3608,93787.0,93777.0,0.3608]
[1735320436854,0.3608,93787.0,93785.0,0.053416]
[1735320437049,0.001,93792.0,93773.0,0.001]
[1735320437249,0.001,93792.0,93791.0,0.053413]
[1735320437451,0.001,93792.0,93786.0,0.3608]
[1735320437452,0.36228,93798.0,93797.0,0.053409]
[1735320437651,0.00308025,93815.0,93797.0,0.3608]
[1735320437856,0.00160025,93815.0,93798.0,1.5]
[1735320438255,0.00160025,93815.0,93813.0,0.0534]
[1735320439255,0.00360025,93815.0,93813.0,0.0534]
[1735320441261,0.01160025,93815.0,93813.0,0.0544]
[1735320441460,0.00960025,93815.0,93813.0,0.0544]
[1735320441762,0.06799925,93815.0,93813.0,0.002]
[1735320442555,0.01460025,93815.0,93813.0,0.002]
[1735320442851,0.01460025,93815.0,93814.0,0.0534]
[1735320444154,0.00960025,93815.0,93814.0,0.0534]
[1735320444454,0.01560025,93815.0,93814.0,0.0554]
[1735320444963,0.3608,93830.0,93814.0,0.0554]
[1735320445158,0.3608,93830.0,93829.0,0.053391]
[1735320446556,0.001599,93849.0,93847.0,0.053381]
[1735320447763,0.010599,93849.0,93847.0,0.054381]
[1735320448065,0.3608,93855.0,93848.0,1.5]
[1735320448266,0.3608,93873.0,93854.0,0.3608]
[1735320448471,0.3608,93873.0,93872.0,0.053367]
[1735320448655,0.053348,93907.0,93883.0,0.053361]
[1735320448860,0.3608,93893.0,93872.0,0.3608]
[1735320449060,0.3608,93893.0,93873.0,1.5]
[1735320449261,0.3608,93882.0,93881.0,0.053362]
[1735320449461,0.3608,93893.0,93887.0,0.053358]
[1735320449860,0.3608,93893.0,93889.0,0.053358]
[1735320450066,0.3608,93906.0,93881.0,0.01280006]
[1735320450261,0.00159815,93912.0,93889.0,0.3608]
[1735320450456,0.3608,93910.0,93889.0,0.3608]
[1735320450662,0.3608,93910.0,93898.0,0.053352]
[1735320450857,0.00159815,93912.0,93898.0,0.053352]
[1735320451062,0.3608,93928.0,93898.0,0.6608]
[1735320451261,0.63739408,94016.0,93898.0,0.6608]
[1735320451262,0.938,93989.0,93927.0,0.3608]
[1735320451461,0.938,93989.0,93915.0,1.5]
[1735320451462,0.053306,93981.0,93960.0,0.3608]
[1735320451666,0.05331,93973.0,93972.0,0.3608]
[1735320451860,0.3608,93977.0,93960.0,0.3608]
[1735320452066,0.3608,93977.0,93951.0,0.3608]
[1735320452067,0.053322,93952.0,93951.0,0.3608]
[1735320452267,0.3608,93961.0,93946.0,0.0036]
[1735320452462,0.053325,93947.0,93943.0,0.3608]
[1735320452664,0.0607,93960.0,93943.0,0.3608]
[1735320452974,0.053326,93946.0,93943.0,0.3608]
[1735320453165,0.053331,93937.0,93926.0,0.3608]
[1735320453366,0.053331,93937.0,93936.0,0.3608]
[1735320454065,0.0627,93960.0,93943.0,0.001]
[1735320454272,0.3608,93953.0,93943.0,0.001]
[1735320454463,0.053338,93933.0,93913.0,0.053349]
[1735320454665,0.3608,93914.0,93882.0,0.47804]
[1735320454870,0.3608,93914.0,93897.0,0.3608]
[1735320455278,0.3608,93914.0,93895.0,0.3608]
[1735320455471,0.3608,93924.0,93906.0,0.3608]
[1735320455665,0.00159782,93933.0,93915.0,0.3608]
[1735320455972,0.3608,93916.0,93897.0,0.053359]
[1735320456170,0.3608,93898.0,93886.0,0.01316918]
[1735320456470,0.30159782,93933.0,93886.0,0.01316918]
[1735320456471,0.3608,93902.0,93892.0,0.053361]
[1735320457063,0.3608,93914.0,93897.0,0.003]
[1735320457771,0.3608,93906.0,93892.0,0.053361]
[1735320457975,0.3608,93930.0,93905.0,0.3608]
[1735320458271,0.00159782,93933.0,93924.0,0.3608]
[1735320458772,0.00159782,93933.0,93925.0,0.053343]
[1735320459177,0.72319782,93933.0,93925.0,0.053343]
[1735320459374,0.72319782,93933.0,93902.0,0.3608]
[1735320459375,0.72319782,93933.0,93920.0,0.01034145]
[1735320459569,0.3608,93921.0,93905.0,0.053354]
[1735320459766,0.3608,93921.0,93878.0,0.3623978]
[1735320459767,0.3608,93906.0,93894.0,0.05336]
[1735320459962,0.3608,93895.0,93894.0,0.05336]
[1735320460164,0.3608,93906.0,93894.0,0.05336]
[1735320460579,0.3608,93898.0,93882.0,0.053367]
[1735320460873,0.3608,93910.0,93895.0,0.3608]
[1735320461080,0.42444001,93920.0,93904.0,0.053354]
[1735320461281,0.42444001,93920.0,93906.0,0.053353]
[1735320461282,0.3608,93909.0,93906.0,0.053353]
[1735320461575,0.3608,93909.0,93894.0,0.05436]
[1735320461877,0.3608,93909.0,93898.0,0.053358]
[1735320462065,0.3608,93909.0,93898.0,1.553358]
[1735320462467,0.3608,93909.0,93898.0,1.5]
[1735320462670,0.3608,93911.0,93904.0,0.053355]
[1735320462877,0.3608,93911.0,93898.0,1.50056]
[1735320463183,0.3608,93911.0,93893.0,0.053361]
[1735320463474,0.053353,93908.0,93894.0,1.5]
[1735320463690,0.3618,93911.0,93897.0,0.414159]
[1735320463890,0.3618,93911.0,93897.0,0.053359]
[1735320464295,0.05336,93895.0,93894.0,0.00056]
[1735320464482,0.053366,93884.0,93863.0,0.053378]